[Event "Titled Tuesday Blitz April 19 Early 2022"]
[White "Ocelak, Jakub"]
[Black "De Arruda, Leandro Formes"]
[WhiteFideId "23707933"]
[BlackFideId "22722009"]
[WhiteElo "2048"]
[BlackElo "1852"]
[Result "1-0"]
[Round "03"]
[TimeControl "180+1"]
[Date "2022.04.19"]
[WhiteClock "0:00:09"]
[BlackClock "0:00:07"]

1. d4 {[%clk 0:03:00]}  d5 {[%clk 0:02:59]} 2. Nf3 {[%clk 0:02:59]}  Nf6 {[%clk 0:03:00]} 3. Bf4 {[%clk 0:02:58]}  e6 {[%clk 0:03:00]} 4. Nbd2 {[%clk 0:02:57]}  Bd6 {[%clk 0:03:00]} 5. Bg3 {[%clk 0:02:56]}  O-O {[%clk 0:03:00]} 6. e3 {[%clk 0:02:55]}  Ne4 {[%clk 0:03:01]} 7. Bxd6 {[%clk 0:02:36]}  cxd6 {[%clk 0:02:58]} 8. Bd3 {[%clk 0:02:35]}  f5 {[%clk 0:02:58]} 9. O-O {[%clk 0:02:30]}  a6 {[%clk 0:02:58]} 10. c4 {[%clk 0:02:29]}  Nxd2 {[%clk 0:02:51]} 11. Qxd2 {[%clk 0:02:25]}  dxc4 {[%clk 0:02:51]} 12. Bxc4 {[%clk 0:02:26]}  Nc6 {[%clk 0:02:46]} 13. Rac1 {[%clk 0:02:20]}  d5 {[%clk 0:02:44]} 14. Bd3 {[%clk 0:02:16]}  Qf6 {[%clk 0:02:43]} 15. Rc5 {[%clk 0:02:06]}  Bd7 {[%clk 0:02:42]} 16. Rfc1 {[%clk 0:02:06]}  Be8 {[%clk 0:02:42]} 17. Qc3 {[%clk 0:01:56]}  Bh5 {[%clk 0:02:40]} 18. Ne5 {[%clk 0:01:56]}  Nxe5 {[%clk 0:02:30]} 19. dxe5 {[%clk 0:01:56]}  Qh4 {[%clk 0:02:20]} 20. Rc7 {[%clk 0:01:39]}  f4 {[%clk 0:02:14]} 21. Qd4 {[%clk 0:01:33]}  Qg5 {[%clk 0:02:06]} 22. exf4 {[%clk 0:01:21]}  Rxf4 {[%clk 0:01:57]} 23. Qe3 {[%clk 0:01:20]}  d4 {[%clk 0:01:47]} 24. Rc8+ {[%clk 0:01:07]}  Rxc8 {[%clk 0:01:38]} 25. Rxc8+ {[%clk 0:01:08]}  Kf7 {[%clk 0:01:38]} 26. Qc1 {[%clk 0:01:03]}  Rf5 {[%clk 0:01:03]} 27. Bxf5 {[%clk 0:00:53]}  Qxc1+ {[%clk 0:00:55]} 28. Rxc1 {[%clk 0:00:54]}  exf5 {[%clk 0:00:54]} 29. Kf1 {[%clk 0:00:47]}  Ke6 {[%clk 0:00:46]} 30. Ke1 {[%clk 0:00:38]}  Kxe5 {[%clk 0:00:45]} 31. Kd2 {[%clk 0:00:33]}  Kd6 {[%clk 0:00:33]} 32. Kd3 {[%clk 0:00:31]}  Bf7 {[%clk 0:00:33]} 33. b3 {[%clk 0:00:25]}  Bd5 {[%clk 0:00:32]} 34. f3 {[%clk 0:00:24]}  g5 {[%clk 0:00:29]} 35. Kxd4 {[%clk 0:00:24]}  g4 {[%clk 0:00:26]} 36. fxg4 {[%clk 0:00:21]}  fxg4 {[%clk 0:00:27]} 37. g3 {[%clk 0:00:21]}  h6 {[%clk 0:00:20]} 38. Rc5 {[%clk 0:00:21]}  Bf3 {[%clk 0:00:16]} 39. Rh5 {[%clk 0:00:21]}  Kc6 {[%clk 0:00:13]} 40. Rxh6+ {[%clk 0:00:21]}  Kb5 {[%clk 0:00:13]} 41. a3 {[%clk 0:00:20]}  Bd1 {[%clk 0:00:12]} 42. Rh5+ {[%clk 0:00:20]}  Kb6 {[%clk 0:00:12]} 43. Kc3 {[%clk 0:00:20]}  Bf3 {[%clk 0:00:12]} 44. h4 {[%clk 0:00:16]}  gxh3 {[%clk 0:00:11]} 45. Rxh3 {[%clk 0:00:17]}  Kc5 {[%clk 0:00:11]} 46. Rh4 {[%clk 0:00:17]}  Kd6 {[%clk 0:00:11]} 47. Rf4 {[%clk 0:00:16]}  Bd1 {[%clk 0:00:09]} 48. Kb4 {[%clk 0:00:16]}  Ke5 {[%clk 0:00:09]} 49. Rf7 {[%clk 0:00:15]}  b6 {[%clk 0:00:08]} 50. a4 {[%clk 0:00:11]}  Be2 {[%clk 0:00:07]} 51. a5 {[%clk 0:00:10]}  bxa5+ {[%clk 0:00:06]} 52. Kxa5 {[%clk 0:00:11]}  Bb5 {[%clk 0:00:07]} 53. b4 {[%clk 0:00:12]}  Ke4 {[%clk 0:00:07]} 54. Ra7 {[%clk 0:00:09]}  Ke5 {[%clk 0:00:06]} 55. Rxa6 {[%clk 0:00:08]}  Bxa6 {[%clk 0:00:07]} 56. Kxa6 {[%clk 0:00:09]} 1-0


[Site "https://www.chess.com"]

[Event "Titled Tuesday Blitz April 19 Early 2022"]
[White "Oganian, Miran"]
[Black "Skliarov, Viktor"]
[WhiteFideId "4122488"]
[BlackFideId "14106736"]
[WhiteElo "2357"]
[BlackElo "2229"]
[Result "1-0"]
[Round "03"]
[TimeControl "180+1"]
[Date "2022.04.19"]
[WhiteClock "0:02:30"]
[BlackClock "0:00:32"]

1. e4 {[%clk 0:02:59]}  c5 {[%clk 0:02:59]} 2. Nf3 {[%clk 0:03:00]}  Nc6 {[%clk 0:03:00]} 3. c3 {[%clk 0:03:00]}  Nf6 {[%clk 0:03:00]} 4. e5 {[%clk 0:03:00]}  Nd5 {[%clk 0:03:00]} 5. d4 {[%clk 0:03:01]}  cxd4 {[%clk 0:02:59]} 6. cxd4 {[%clk 0:03:02]}  d6 {[%clk 0:03:00]} 7. Bc4 {[%clk 0:03:02]}  e6 {[%clk 0:02:56]} 8. O-O {[%clk 0:03:02]}  dxe5 {[%clk 0:02:53]} 9. dxe5 {[%clk 0:03:02]}  Be7 {[%clk 0:02:53]} 10. Bd2 {[%clk 0:03:02]}  O-O {[%clk 0:02:53]} 11. Nc3 {[%clk 0:03:02]}  Nxc3 {[%clk 0:02:42]} 12. Bxc3 {[%clk 0:03:03]}  Qc7 {[%clk 0:02:42]} 13. Qe2 {[%clk 0:03:03]}  Rd8 {[%clk 0:02:42]} 14. Bd3 {[%clk 0:02:57]}  Bd7 {[%clk 0:02:34]} 15. Qe4 {[%clk 0:02:53]}  g6 {[%clk 0:02:34]} 16. h4 {[%clk 0:02:53]}  Bf8 {[%clk 0:01:40]} 17. h5 {[%clk 0:02:53]}  Ne7 {[%clk 0:01:36]} 18. hxg6 {[%clk 0:02:52]}  hxg6 {[%clk 0:01:30]} 19. Qh4 {[%clk 0:02:46]}  Bc6 {[%clk 0:01:10]} 20. Ng5 {[%clk 0:02:42]}  Bg7 {[%clk 0:01:10]} 21. Bc4 {[%clk 0:02:30]}  b5 {[%clk 0:00:52]} 22. Bxe6 {[%clk 0:02:30]}  fxe6 {[%clk 0:00:36]} 23. Qh7+ {[%clk 0:02:29]}  Kf8 {[%clk 0:00:32]} 24. Nxe6+ {[%clk 0:02:30]} 1-0


[Site "https://www.chess.com"]

[Event "Titled Tuesday Blitz April 19 Early 2022"]
[White "Pajeken, Jakob Leon"]
[Black "Silva Lucena, Cristian"]
[WhiteFideId "12942839"]
[BlackFideId "2232588"]
[WhiteElo "2351"]
[BlackElo "2223"]
[Result "0-1"]
[Round "03"]
[TimeControl "180+1"]
[Date "2022.04.19"]
[WhiteClock "0:01:32"]
[BlackClock "0:00:50"]

1. d4 {[%clk 0:03:00]}  d5 {[%clk 0:02:57]} 2. c4 {[%clk 0:03:00]}  e6 {[%clk 0:02:56]} 3. Nc3 {[%clk 0:03:00]}  c6 {[%clk 0:02:54]} 4. g4 {[%clk 0:02:57]}  dxc4 {[%clk 0:02:38]} 5. e4 {[%clk 0:02:56]}  b5 {[%clk 0:02:39]} 6. g5 {[%clk 0:02:53]}  a6 {[%clk 0:02:34]} 7. Nf3 {[%clk 0:02:50]}  Bb7 {[%clk 0:02:31]} 8. Bh3 {[%clk 0:02:44]}  Bb4 {[%clk 0:02:28]} 9. O-O {[%clk 0:02:43]}  Ne7 {[%clk 0:02:22]} 10. a3 {[%clk 0:02:41]}  Ba5 {[%clk 0:02:18]} 11. Ne5 {[%clk 0:02:33]}  Nd7 {[%clk 0:02:14]} 12. Nxf7 {[%clk 0:02:22]}  Kxf7 {[%clk 0:02:13]} 13. Qf3+ {[%clk 0:02:17]}  Ke8 {[%clk 0:02:09]} 14. Bxe6 {[%clk 0:02:17]}  Rf8 {[%clk 0:01:53]} 15. Qh3 {[%clk 0:02:16]}  Bxc3 {[%clk 0:01:39]} 16. bxc3 {[%clk 0:02:17]}  Nb6 {[%clk 0:01:39]} 17. Qxh7 {[%clk 0:02:16]}  Bc8 {[%clk 0:01:37]} 18. Bxc8 {[%clk 0:02:08]}  Qxc8 {[%clk 0:01:38]} 19. f4 {[%clk 0:02:01]}  Qg4+ {[%clk 0:01:30]} 20. Kf2 {[%clk 0:02:01]}  Na4 {[%clk 0:01:13]} 21. Rg1 {[%clk 0:01:52]}  Qe6 {[%clk 0:01:07]} 22. Bd2 {[%clk 0:01:52]}  Nb2 {[%clk 0:01:06]} 23. Raf1 {[%clk 0:01:40]}  Nd3+ {[%clk 0:01:02]} 24. Kg2 {[%clk 0:01:40]}  g6 {[%clk 0:00:55]} 25. h4 {[%clk 0:01:32]}  Qxe4+ {[%clk 0:00:50]} 0-1


[Site "https://www.chess.com"]

[Event "Titled Tuesday Blitz April 19 Early 2022"]
[White "Paravyan, David"]
[Black "Samant Aditya S"]
[WhiteFideId "4194985"]
[BlackFideId "35080580"]
[WhiteElo "2569"]
[BlackElo "1916"]
[Result "1/2-1/2"]
[Round "03"]
[TimeControl "180+1"]
[Date "2022.04.19"]
[WhiteClock "0:00:29"]
[BlackClock "0:00:05"]

1. e4 {[%clk 0:03:00]}  c5 {[%clk 0:02:58]} 2. Nf3 {[%clk 0:02:59]}  d6 {[%clk 0:02:58]} 3. d4 {[%clk 0:02:59]}  cxd4 {[%clk 0:02:59]} 4. Nxd4 {[%clk 0:03:00]}  Nf6 {[%clk 0:03:00]} 5. Nc3 {[%clk 0:03:01]}  Nc6 {[%clk 0:03:00]} 6. Bg5 {[%clk 0:03:01]}  e6 {[%clk 0:03:01]} 7. Qd3 {[%clk 0:03:01]}  Bd7 {[%clk 0:03:00]} 8. Ndb5 {[%clk 0:03:02]}  Nb4 {[%clk 0:03:00]} 9. Qd1 {[%clk 0:03:02]}  a6 {[%clk 0:02:59]} 10. Bxf6 {[%clk 0:03:02]}  gxf6 {[%clk 0:02:59]} 11. a3 {[%clk 0:03:02]}  axb5 {[%clk 0:02:58]} 12. axb4 {[%clk 0:03:02]}  Rxa1 {[%clk 0:02:59]} 13. Qxa1 {[%clk 0:03:02]}  d5 {[%clk 0:03:00]} 14. exd5 {[%clk 0:03:00]}  Bxb4 {[%clk 0:03:00]} 15. dxe6 {[%clk 0:02:57]}  fxe6 {[%clk 0:03:00]} 16. Be2 {[%clk 0:02:56]}  Qa5 {[%clk 0:02:57]} 17. O-O {[%clk 0:02:51]}  Bxc3 {[%clk 0:02:29]} 18. bxc3 {[%clk 0:02:49]}  Qxa1 {[%clk 0:02:29]} 19. Rxa1 {[%clk 0:02:50]}  Ke7 {[%clk 0:02:29]} 20. Rb1 {[%clk 0:02:47]}  Ra8 {[%clk 0:02:24]} 21. h3 {[%clk 0:02:36]}  Ra5 {[%clk 0:02:06]} 22. Rb4 {[%clk 0:02:28]}  Ra4 {[%clk 0:01:54]} 23. Rb3 {[%clk 0:01:56]}  Ra5 {[%clk 0:01:51]} 24. Bd3 {[%clk 0:01:44]}  h5 {[%clk 0:01:35]} 25. Kh2 {[%clk 0:01:38]}  Kd6 {[%clk 0:01:08]} 26. Kg3 {[%clk 0:01:36]}  Kc5 {[%clk 0:01:06]} 27. Kh4 {[%clk 0:00:46]}  Be8 {[%clk 0:01:06]} 28. g4 {[%clk 0:00:35]}  Ra4 {[%clk 0:01:00]} 29. Kg3 {[%clk 0:00:34]}  hxg4 {[%clk 0:00:53]} 30. hxg4 {[%clk 0:00:34]}  e5 {[%clk 0:00:47]} 31. f3 {[%clk 0:00:32]}  Bc6 {[%clk 0:00:42]} 32. Kf2 {[%clk 0:00:22]}  Rf4 {[%clk 0:00:23]} 33. Be2 {[%clk 0:00:22]}  f5 {[%clk 0:00:07]} 34. gxf5 {[%clk 0:00:19]}  Rxf5 {[%clk 0:00:08]} 35. Ke3 {[%clk 0:00:18]}  Rf4 {[%clk 0:00:08]} 36. Rb1 {[%clk 0:00:18]}  Rh4 {[%clk 0:00:05]} 37. Rg1 {[%clk 0:00:18]}  e4 {[%clk 0:00:06]} 38. Rg5+ {[%clk 0:00:17]}  Kb6 {[%clk 0:00:06]} 39. fxe4 {[%clk 0:00:13]}  Rxe4+ {[%clk 0:00:06]} 40. Kd2 {[%clk 0:00:13]}  Re7 {[%clk 0:00:05]} 41. Bd3 {[%clk 0:00:14]}  Rd7 {[%clk 0:00:06]} 42. Kc1 {[%clk 0:00:14]}  Rd6 {[%clk 0:00:06]} 43. Kb2 {[%clk 0:00:15]}  Rd7 {[%clk 0:00:06]} 44. Ka3 {[%clk 0:00:16]}  Rd6 {[%clk 0:00:07]} 45. Kb4 {[%clk 0:00:16]}  Rd7 {[%clk 0:00:07]} 46. Bxb5 {[%clk 0:00:17]}  Bxb5 {[%clk 0:00:07]} 47. Rxb5+ {[%clk 0:00:17]}  Kc7 {[%clk 0:00:08]} 48. Rh5 {[%clk 0:00:18]}  Rg7 {[%clk 0:00:08]} 49. c4 {[%clk 0:00:19]}  Kd7 {[%clk 0:00:08]} 50. Kb5 {[%clk 0:00:19]}  Kc7 {[%clk 0:00:08]} 51. c5 {[%clk 0:00:19]}  Rf7 {[%clk 0:00:07]} 52. Rg5 {[%clk 0:00:19]}  Rh7 {[%clk 0:00:06]} 53. Rg6 {[%clk 0:00:20]}  Rf7 {[%clk 0:00:06]} 54. Re6 {[%clk 0:00:19]}  Rg7 {[%clk 0:00:06]} 55. Rf6 {[%clk 0:00:20]}  Rh7 {[%clk 0:00:06]} 56. c4 {[%clk 0:00:19]}  Rg7 {[%clk 0:00:06]} 57. c6 {[%clk 0:00:20]}  bxc6+ {[%clk 0:00:04]} 58. Rxc6+ {[%clk 0:00:21]}  Kb7 {[%clk 0:00:03]} 59. c5 {[%clk 0:00:22]}  Rg1 {[%clk 0:00:03]} 60. Rb6+ {[%clk 0:00:21]}  Kc7 {[%clk 0:00:03]} 61. Rh6 {[%clk 0:00:21]}  Rb1+ {[%clk 0:00:02]} 62. Kc4 {[%clk 0:00:22]}  Rc1+ {[%clk 0:00:03]} 63. Kd5 {[%clk 0:00:23]}  Rd1+ {[%clk 0:00:03]} 64. Ke5 {[%clk 0:00:23]}  Re1+ {[%clk 0:00:04]} 65. Kd4 {[%clk 0:00:24]}  Rd1+ {[%clk 0:00:04]} 66. Kc3 {[%clk 0:00:25]}  Rc1+ {[%clk 0:00:04]} 67. Kb4 {[%clk 0:00:25]}  Rb1+ {[%clk 0:00:05]} 68. Kc4 {[%clk 0:00:26]}  Rc1+ {[%clk 0:00:05]} 69. Kd4 {[%clk 0:00:27]}  Rd1+ {[%clk 0:00:05]} 70. Ke3 {[%clk 0:00:27]}  Rc1 {[%clk 0:00:05]} 71. Rh5 {[%clk 0:00:27]}  Kc6 {[%clk 0:00:05]} 72. Rh8 {[%clk 0:00:28]}  Rxc5 {[%clk 0:00:05]} 73. Rc8+ {[%clk 0:00:28]}  Kb5 {[%clk 0:00:05]} 74. Rxc5+ {[%clk 0:00:29]}  Kxc5 {[%clk 0:00:05]} 1/2-1/2


[Site "https://www.chess.com"]

[Event "Titled Tuesday Blitz April 19 Early 2022"]
[White "Pires, Marcos Vinicius Torsani"]
[Black "Biletskiy, Danylo"]
[WhiteFideId "2118939"]
[BlackFideId "14155419"]
[WhiteElo "2273"]
[BlackElo "2087"]
[Result "1/2-1/2"]
[Round "03"]
[TimeControl "180+1"]
[Date "2022.04.19"]
[WhiteClock "0:00:38"]
[BlackClock "0:01:08"]

1. e4 {[%clk 0:03:00]}  c5 {[%clk 0:02:59]} 2. c3 {[%clk 0:03:00]}  Nf6 {[%clk 0:02:59]} 3. e5 {[%clk 0:03:00]}  Nd5 {[%clk 0:02:59]} 4. d4 {[%clk 0:03:01]}  cxd4 {[%clk 0:03:00]} 5. Nf3 {[%clk 0:03:01]}  Nc6 {[%clk 0:03:00]} 6. cxd4 {[%clk 0:03:01]}  d6 {[%clk 0:03:00]} 7. Bc4 {[%clk 0:03:01]}  Nb6 {[%clk 0:03:00]} 8. Bb5 {[%clk 0:03:01]}  dxe5 {[%clk 0:03:01]} 9. Nxe5 {[%clk 0:03:02]}  Bd7 {[%clk 0:03:01]} 10. Nxd7 {[%clk 0:03:03]}  Qxd7 {[%clk 0:03:02]} 11. Nc3 {[%clk 0:03:02]}  e6 {[%clk 0:03:02]} 12. O-O {[%clk 0:03:02]}  Be7 {[%clk 0:03:02]} 13. Be3 {[%clk 0:03:02]}  O-O {[%clk 0:03:02]} 14. Qf3 {[%clk 0:02:50]}  Rfd8 {[%clk 0:02:57]} 15. Rfd1 {[%clk 0:02:44]}  Rac8 {[%clk 0:02:47]} 16. Rac1 {[%clk 0:02:38]}  a6 {[%clk 0:02:46]} 17. Bxc6 {[%clk 0:02:38]}  Rxc6 {[%clk 0:02:47]} 18. Ne4 {[%clk 0:02:32]}  Rxc1 {[%clk 0:02:45]} 19. Rxc1 {[%clk 0:02:33]}  Nd5 {[%clk 0:02:45]} 20. Nc5 {[%clk 0:02:28]}  Qb5 {[%clk 0:02:37]} 21. b3 {[%clk 0:02:21]}  Rc8 {[%clk 0:02:35]} 22. Qd1 {[%clk 0:01:56]}  h6 {[%clk 0:02:21]} 23. h3 {[%clk 0:01:55]}  Nxe3 {[%clk 0:02:16]} 24. fxe3 {[%clk 0:01:54]}  Bxc5 {[%clk 0:02:17]} 25. Qc2 {[%clk 0:01:43]}  b6 {[%clk 0:02:15]} 26. Qc4 {[%clk 0:01:35]}  Qxc4 {[%clk 0:01:49]} 27. Rxc4 {[%clk 0:01:34]}  Rc7 {[%clk 0:01:49]} 28. dxc5 {[%clk 0:01:30]}  Rxc5 {[%clk 0:01:50]} 29. Rb4 {[%clk 0:01:21]}  b5 {[%clk 0:01:50]} 30. a4 {[%clk 0:01:21]}  Kf8 {[%clk 0:01:44]} 31. Kf2 {[%clk 0:01:19]}  Ke7 {[%clk 0:01:44]} 32. Ke2 {[%clk 0:01:17]}  Kd6 {[%clk 0:01:44]} 33. Rd4+ {[%clk 0:01:14]}  Kc6 {[%clk 0:01:43]} 34. axb5+ {[%clk 0:01:13]}  Kxb5 {[%clk 0:01:41]} 35. Rd7 {[%clk 0:01:10]}  Kb4 {[%clk 0:01:33]} 36. Rxf7 {[%clk 0:01:08]}  Kxb3 {[%clk 0:01:33]} 37. Rxg7 {[%clk 0:01:09]}  a5 {[%clk 0:01:34]} 38. Ra7 {[%clk 0:01:05]}  a4 {[%clk 0:01:34]} 39. Kd2 {[%clk 0:01:03]}  a3 {[%clk 0:01:34]} 40. Rb7+ {[%clk 0:01:03]}  Ka4 {[%clk 0:01:17]} 41. Ra7+ {[%clk 0:01:03]}  Ra5 {[%clk 0:01:11]} 42. Rxa5+ {[%clk 0:01:00]}  Kxa5 {[%clk 0:01:12]} 43. Kc2 {[%clk 0:01:00]}  Kb5 {[%clk 0:01:12]} 44. g4 {[%clk 0:00:56]}  Kc5 {[%clk 0:01:13]} 45. h4 {[%clk 0:00:56]}  Kd5 {[%clk 0:01:13]} 46. g5 {[%clk 0:00:56]}  hxg5 {[%clk 0:01:12]} 47. hxg5 {[%clk 0:00:51]}  Ke5 {[%clk 0:01:12]} 48. Kb3 {[%clk 0:00:52]}  Kf5 {[%clk 0:01:13]} 49. Kxa3 {[%clk 0:00:53]}  Kxg5 {[%clk 0:01:14]} 50. Kb3 {[%clk 0:00:53]}  Kf5 {[%clk 0:01:13]} 51. Kc3 {[%clk 0:00:52]}  Ke4 {[%clk 0:01:14]} 52. Kd2 {[%clk 0:00:50]}  Kf3 {[%clk 0:01:14]} 53. Kd3 {[%clk 0:00:37]}  e5 {[%clk 0:01:14]} 54. e4 {[%clk 0:00:37]}  Kf4 {[%clk 0:01:14]} 55. Kd2 {[%clk 0:00:37]}  Kg3 {[%clk 0:01:06]} 56. Ke1 {[%clk 0:00:36]}  Kf3 {[%clk 0:01:05]} 57. Kd1 {[%clk 0:00:37]}  Kf2 {[%clk 0:01:03]} 58. Kd2 {[%clk 0:00:37]}  Kg2 {[%clk 0:01:03]} 59. Ke2 {[%clk 0:00:37]}  Kg3 {[%clk 0:01:03]} 60. Ke3 {[%clk 0:00:38]}  Kg4 {[%clk 0:01:04]} 61. Kd3 {[%clk 0:00:37]}  Kf4 {[%clk 0:01:05]} 62. Kd2 {[%clk 0:00:37]}  Kf3 {[%clk 0:01:05]} 63. Ke1 {[%clk 0:00:36]}  Ke3 {[%clk 0:01:04]} 64. Kd1 {[%clk 0:00:36]}  Kd3 {[%clk 0:01:04]} 65. Ke1 {[%clk 0:00:37]}  Kc3 {[%clk 0:01:03]} 66. Kd1 {[%clk 0:00:36]}  Kc4 {[%clk 0:01:02]} 67. Ke1 {[%clk 0:00:37]}  Kd4 {[%clk 0:01:02]} 68. Kd1 {[%clk 0:00:36]}  Kd3 {[%clk 0:01:02]} 69. Ke1 {[%clk 0:00:37]}  Kxe4 {[%clk 0:01:03]} 70. Ke2 {[%clk 0:00:37]}  Kd4 {[%clk 0:01:04]} 71. Kd2 {[%clk 0:00:37]}  e4 {[%clk 0:01:04]} 72. Ke2 {[%clk 0:00:37]}  e3 {[%clk 0:01:05]} 73. Ke1 {[%clk 0:00:37]}  Kd3 {[%clk 0:01:06]} 74. Kd1 {[%clk 0:00:38]}  e2+ {[%clk 0:01:07]} 75. Ke1 {[%clk 0:00:38]}  Ke3 {[%clk 0:01:08]} 1/2-1/2


[Site "https://www.chess.com"]

[Event "Titled Tuesday Blitz April 19 Early 2022"]
[White "Pourkashiyan, Atousa"]
[Black "Janaszak, Dawid"]
[WhiteFideId "12502014"]
[BlackFideId "1119206"]
[WhiteElo "2247"]
[BlackElo "2199"]
[Result "0-1"]
[Round "03"]
[TimeControl "180+1"]
[Date "2022.04.19"]
[WhiteClock "0:00:22"]
[BlackClock "0:00:19"]

1. e4 {[%clk 0:00:30]}  c5 {[%clk 0:02:59]} 2. Nf3 {[%clk 0:00:30]}  Nc6 {[%clk 0:02:58]} 3. d4 {[%clk 0:00:31]}  cxd4 {[%clk 0:02:58]} 4. Nxd4 {[%clk 0:00:32]}  g6 {[%clk 0:02:59]} 5. Nc3 {[%clk 0:00:33]}  Bg7 {[%clk 0:03:00]} 6. Be3 {[%clk 0:00:33]}  Nf6 {[%clk 0:03:00]} 7. Be2 {[%clk 0:00:34]}  O-O {[%clk 0:03:00]} 8. O-O {[%clk 0:00:34]}  d5 {[%clk 0:02:59]} 9. exd5 {[%clk 0:00:35]}  Nxd5 {[%clk 0:02:59]} 10. Nxc6 {[%clk 0:00:35]}  bxc6 {[%clk 0:02:59]} 11. Bd4 {[%clk 0:00:35]}  e5 {[%clk 0:02:54]} 12. Bc5 {[%clk 0:00:35]}  Re8 {[%clk 0:02:55]} 13. Bc4 {[%clk 0:00:35]}  Be6 {[%clk 0:02:54]} 14. Re1 {[%clk 0:00:34]}  Qa5 {[%clk 0:02:42]} 15. Bxd5 {[%clk 0:00:24]}  cxd5 {[%clk 0:02:40]} 16. b4 {[%clk 0:00:25]}  Qd8 {[%clk 0:02:37]} 17. Nb5 {[%clk 0:00:24]}  a5 {[%clk 0:02:04]} 18. a3 {[%clk 0:00:24]}  Qd7 {[%clk 0:01:56]} 19. Nd6 {[%clk 0:00:24]}  Reb8 {[%clk 0:01:56]} 20. c4 {[%clk 0:00:22]}  Qc6 {[%clk 0:01:51]} 21. cxd5 {[%clk 0:00:21]}  Bxd5 {[%clk 0:01:51]} 22. Qg4 {[%clk 0:00:20]}  f5 {[%clk 0:01:45]} 23. Qg3 {[%clk 0:00:20]}  Rd8 {[%clk 0:01:12]} 24. Rad1 {[%clk 0:00:20]}  f4 {[%clk 0:01:04]} 25. Qg4 {[%clk 0:00:19]}  axb4 {[%clk 0:00:57]} 26. axb4 {[%clk 0:00:19]}  Rxd6 {[%clk 0:00:57]} 27. Bxd6 {[%clk 0:00:19]}  Qxd6 {[%clk 0:00:58]} 28. Rd2 {[%clk 0:00:19]}  Qe6 {[%clk 0:00:56]} 29. Qd1 {[%clk 0:00:18]}  Bc6 {[%clk 0:00:50]} 30. Rd8+ {[%clk 0:00:19]}  Rxd8 {[%clk 0:00:50]} 31. Qxd8+ {[%clk 0:00:20]}  Bf8 {[%clk 0:00:51]} 32. Rd1 {[%clk 0:00:20]}  Qg4 {[%clk 0:00:46]} 33. f3 {[%clk 0:00:18]}  Bxf3 {[%clk 0:00:46]} 34. Rd2 {[%clk 0:00:17]}  Bc6 {[%clk 0:00:38]} 35. Qc7 {[%clk 0:00:17]}  Qe6 {[%clk 0:00:32]} 36. Rc2 {[%clk 0:00:16]}  Be4 {[%clk 0:00:31]} 37. Qc4 {[%clk 0:00:16]}  Bd5 {[%clk 0:00:31]} 38. Qc7 {[%clk 0:00:15]}  Bd6 {[%clk 0:00:25]} 39. Qc8+ {[%clk 0:00:15]}  Qxc8 {[%clk 0:00:20]} 40. Rxc8+ {[%clk 0:00:15]}  Kf7 {[%clk 0:00:21]} 41. Rd8 {[%clk 0:00:16]}  Ke7 {[%clk 0:00:21]} 42. Rh8 {[%clk 0:00:17]}  Bxb4 {[%clk 0:00:21]} 43. Rxh7+ {[%clk 0:00:17]}  Kf6 {[%clk 0:00:21]} 44. Rh8 {[%clk 0:00:17]}  Bc5+ {[%clk 0:00:22]} 45. Kf1 {[%clk 0:00:17]}  e4 {[%clk 0:00:22]} 46. Rc8 {[%clk 0:00:16]}  Bd4 {[%clk 0:00:20]} 47. Rd8 {[%clk 0:00:16]}  Ke5 {[%clk 0:00:20]} 48. Re8+ {[%clk 0:00:17]}  Be6 {[%clk 0:00:21]} 49. Rd8 {[%clk 0:00:17]}  e3 {[%clk 0:00:20]} 50. Ke1 {[%clk 0:00:17]}  Bc3+ {[%clk 0:00:20]} 51. Ke2 {[%clk 0:00:17]}  Bc4+ {[%clk 0:00:20]} 52. Kf3 {[%clk 0:00:17]}  e2 {[%clk 0:00:21]} 53. Re8+ {[%clk 0:00:17]}  Kf5 {[%clk 0:00:21]} 54. Rxe2 {[%clk 0:00:18]}  Bxe2+ {[%clk 0:00:20]} 55. Kxe2 {[%clk 0:00:18]}  Ke4 {[%clk 0:00:20]} 56. Kf2 {[%clk 0:00:19]}  Bd4+ {[%clk 0:00:20]} 57. Ke2 {[%clk 0:00:20]}  Bg1 {[%clk 0:00:20]} 58. h3 {[%clk 0:00:20]}  Bd4 {[%clk 0:00:20]} 59. Kf1 {[%clk 0:00:20]}  Ke3 {[%clk 0:00:19]} 60. Kg1 {[%clk 0:00:21]}  Ke2+ {[%clk 0:00:20]} 61. Kh2 {[%clk 0:00:21]}  Kf2 {[%clk 0:00:20]} 62. h4 {[%clk 0:00:21]}  Be5 {[%clk 0:00:20]} 63. Kh3 {[%clk 0:00:22]}  Bd6 {[%clk 0:00:19]} 64. Kh2 {[%clk 0:00:21]}  f3+ {[%clk 0:00:19]} 65. g3 {[%clk 0:00:22]}  Bxg3+ {[%clk 0:00:19]} 66. Kh1 {[%clk 0:00:23]}  Bxh4 {[%clk 0:00:19]} 67. Kh2 {[%clk 0:00:22]}  Ke3 {[%clk 0:00:19]} 0-1


[Site "https://www.chess.com"]

[Event "Titled Tuesday Blitz April 19 Early 2022"]
[White "Prohorov, Olexandr"]
[Black "Murthy, Pappu"]
[WhiteFideId "14105578"]
[BlackFideId "2013401"]
[WhiteElo "1993"]
[BlackElo "1923"]
[Result "1-0"]
[Round "03"]
[TimeControl "180+1"]
[Date "2022.04.19"]
[WhiteClock "0:00:44"]
[BlackClock "0:00:09"]

1. Nf3 {[%clk 0:03:00]}  c5 {[%clk 0:02:57]} 2. e4 {[%clk 0:03:00]}  d6 {[%clk 0:02:54]} 3. c3 {[%clk 0:03:00]}  e5 {[%clk 0:02:41]} 4. d4 {[%clk 0:03:00]}  cxd4 {[%clk 0:02:41]} 5. cxd4 {[%clk 0:03:01]}  exd4 {[%clk 0:02:36]} 6. Nxd4 {[%clk 0:03:02]}  Nf6 {[%clk 0:02:36]} 7. Nc3 {[%clk 0:03:01]}  Be7 {[%clk 0:02:36]} 8. Bc4 {[%clk 0:03:02]}  O-O {[%clk 0:02:36]} 9. O-O {[%clk 0:03:02]}  Nc6 {[%clk 0:02:36]} 10. f3 {[%clk 0:03:01]}  Qb6 {[%clk 0:02:23]} 11. Ne2 {[%clk 0:02:43]}  Qb4 {[%clk 0:02:14]} 12. b3 {[%clk 0:02:39]}  Ne5 {[%clk 0:02:12]} 13. a3 {[%clk 0:02:14]}  Qb6 {[%clk 0:02:02]} 14. Be3 {[%clk 0:02:13]}  Nxc4 {[%clk 0:02:01]} 15. bxc4 {[%clk 0:02:14]}  Qa5 {[%clk 0:01:54]} 16. Qd3 {[%clk 0:02:06]}  a6 {[%clk 0:01:53]} 17. Rab1 {[%clk 0:02:05]}  Rb8 {[%clk 0:01:51]} 18. Nc3 {[%clk 0:02:00]}  Bd7 {[%clk 0:01:48]} 19. Nd5 {[%clk 0:01:56]}  Nxd5 {[%clk 0:01:46]} 20. cxd5 {[%clk 0:01:56]}  Bf6 {[%clk 0:01:42]} 21. Rfc1 {[%clk 0:01:54]}  h6 {[%clk 0:01:38]} 22. g4 {[%clk 0:01:53]}  Bb5 {[%clk 0:01:19]} 23. Nxb5 {[%clk 0:01:50]}  axb5 {[%clk 0:01:20]} 24. Rxb5 {[%clk 0:01:49]}  Qa4 {[%clk 0:01:06]} 25. Qb3 {[%clk 0:01:47]}  Qa6 {[%clk 0:01:02]} 26. Kg2 {[%clk 0:01:47]}  Rfc8 {[%clk 0:00:55]} 27. Rxc8+ {[%clk 0:01:37]}  Rxc8 {[%clk 0:00:55]} 28. Bd2 {[%clk 0:01:14]}  g5 {[%clk 0:00:33]} 29. a4 {[%clk 0:01:04]}  Kg7 {[%clk 0:00:32]} 30. Kf2 {[%clk 0:01:00]}  Bd4+ {[%clk 0:00:27]} 31. Be3 {[%clk 0:01:00]}  Qa7 {[%clk 0:00:25]} 32. Bxd4+ {[%clk 0:00:46]}  Qxd4+ {[%clk 0:00:25]} 33. Kg3 {[%clk 0:00:45]}  Qg1+ {[%clk 0:00:17]} 34. Kh3 {[%clk 0:00:45]}  Qf1+ {[%clk 0:00:12]} 35. Kg3 {[%clk 0:00:45]}  Qe1+ {[%clk 0:00:09]} 36. Kh3 {[%clk 0:00:44]} 1-0


[Site "https://www.chess.com"]